[Event "Titled Tuesday Blitz July 18 Late 2023"]
[White "Sadovsky, Artem"]
[Black "NLLO777"]
[WhiteFideId "4155840"]
[WhiteElo "2565"]
[BlackElo "2459"]
[Result "1/2-1/2"]
[Round "10"]
[TimeControl "180+2"]
[Date "2023.07.18"]
[WhiteClock "0:00:03"]
[BlackClock "0:00:06"]
[Board "54"]

1. Nf3 {[%clk 0:03:00]}  d5 {[%clk 0:02:58]} 2. e3 {[%clk 0:03:01]}  Nf6 {[%clk 0:02:57]} 3. c4 {[%clk 0:03:01]}  e6 {[%clk 0:02:56]} 4. b3 {[%clk 0:03:02]}  Be7 {[%clk 0:02:56]} 5. Bb2 {[%clk 0:03:02]}  O-O {[%clk 0:02:57]} 6. Be2 {[%clk 0:03:03]}  c5 {[%clk 0:02:57]} 7. O-O {[%clk 0:03:03]}  Nc6 {[%clk 0:02:57]} 8. cxd5 {[%clk 0:03:04]}  exd5 {[%clk 0:02:57]} 9. d4 {[%clk 0:03:05]}  b6 {[%clk 0:02:56]} 10. Nc3 {[%clk 0:03:03]}  Bb7 {[%clk 0:02:56]} 11. Rc1 {[%clk 0:03:02]}  Rc8 {[%clk 0:02:55]} 12. dxc5 {[%clk 0:03:03]}  bxc5 {[%clk 0:02:55]} 13. Na4 {[%clk 0:03:02]}  Ne4 {[%clk 0:02:48]} 14. Nd2 {[%clk 0:03:02]}  Nxd2 {[%clk 0:02:46]} 15. Qxd2 {[%clk 0:03:03]}  Nb4 {[%clk 0:02:20]} 16. Nxc5 {[%clk 0:02:53]}  Bxc5 {[%clk 0:01:25]} 17. Rxc5 {[%clk 0:02:53]}  Rxc5 {[%clk 0:01:24]} 18. Qd4 {[%clk 0:02:23]}  Qf6 {[%clk 0:01:20]} 19. Qxc5 {[%clk 0:02:21]}  Qxb2 {[%clk 0:01:19]} 20. Qxb4 {[%clk 0:02:21]}  Qxe2 {[%clk 0:01:17]} 21. Qxb7 {[%clk 0:02:20]}  Qxa2 {[%clk 0:01:15]} 22. Qxd5 {[%clk 0:02:19]}  Rb8 {[%clk 0:01:12]} 23. Rc1 {[%clk 0:01:48]}  h6 {[%clk 0:01:08]} 24. h4 {[%clk 0:01:36]}  Qxb3 {[%clk 0:01:05]} 25. Rc8+ {[%clk 0:01:33]}  Kh7 {[%clk 0:01:02]} 26. Qe4+ {[%clk 0:01:14]}  g6 {[%clk 0:01:00]} 27. Rc7 {[%clk 0:01:02]}  a5 {[%clk 0:00:50]} 28. Qe5 {[%clk 0:00:40]}  a4 {[%clk 0:00:30]} 29. h5 {[%clk 0:00:40]}  Qd1+ {[%clk 0:00:25]} 30. Kh2 {[%clk 0:00:41]}  Qxh5+ {[%clk 0:00:19]} 31. Qxh5 {[%clk 0:00:40]}  gxh5 {[%clk 0:00:19]} 32. Rxf7+ {[%clk 0:00:40]}  Kg6 {[%clk 0:00:20]} 33. Ra7 {[%clk 0:00:41]}  Rb4 {[%clk 0:00:19]} 34. Ra5 {[%clk 0:00:41]}  h4 {[%clk 0:00:16]} 35. Kh3 {[%clk 0:00:41]}  Rb2 {[%clk 0:00:13]} 36. f3 {[%clk 0:00:41]}  Rb3 {[%clk 0:00:12]} 37. e4 {[%clk 0:00:41]}  a3 {[%clk 0:00:11]} 38. Kxh4 {[%clk 0:00:41]}  Rb2 {[%clk 0:00:11]} 39. g4 {[%clk 0:00:30]}  a2 {[%clk 0:00:10]} 40. Kg3 {[%clk 0:00:30]}  Kf6 {[%clk 0:00:10]} 41. f4 {[%clk 0:00:23]}  Rb3+ {[%clk 0:00:07]} 42. Kh4 {[%clk 0:00:23]}  Rb2 {[%clk 0:00:07]} 43. e5+ {[%clk 0:00:23]}  Kg7 {[%clk 0:00:05]} 44. f5 {[%clk 0:00:23]}  Rh2+ {[%clk 0:00:02]} 45. Kg3 {[%clk 0:00:22]}  Rb2 {[%clk 0:00:03]} 46. e6 {[%clk 0:00:21]}  Kf6 {[%clk 0:00:03]} 47. Ra7 {[%clk 0:00:19]}  h5 {[%clk 0:00:03]} 48. gxh5 {[%clk 0:00:19]}  Kxf5 {[%clk 0:00:04]} 49. e7 {[%clk 0:00:19]}  Re2 {[%clk 0:00:04]} 50. h6 {[%clk 0:00:14]}  Rxe7 {[%clk 0:00:04]} 51. Rxa2 {[%clk 0:00:10]}  Rh7 {[%clk 0:00:04]} 52. Ra6 {[%clk 0:00:04]}  Kg5 {[%clk 0:00:03]} 53. Ra5+ {[%clk 0:00:03]}  Kxh6 {[%clk 0:00:03]} 54. Kg4 {[%clk 0:00:04]}  Kg6 {[%clk 0:00:03]} 55. Ra6+ {[%clk 0:00:03]}  Kf7 {[%clk 0:00:03]} 56. Kg5 {[%clk 0:00:04]}  Rg7+ {[%clk 0:00:03]} 57. Kf5 {[%clk 0:00:05]}  Rg1 {[%clk 0:00:03]} 58. Ra7+ {[%clk 0:00:05]}  Ke8 {[%clk 0:00:04]} 59. Ra8+ {[%clk 0:00:04]}  Kd7 {[%clk 0:00:04]} 60. Ra7+ {[%clk 0:00:03]}  Kd6 {[%clk 0:00:05]} 61. Ra6+ {[%clk 0:00:03]}  Kd5 {[%clk 0:00:05]} 62. Ra4 {[%clk 0:00:02]}  Kd6 {[%clk 0:00:05]} 63. Rf4 {[%clk 0:00:02]}  Rg8 {[%clk 0:00:05]} 64. Rd4+ {[%clk 0:00:02]}  Kc5 {[%clk 0:00:05]} 65. Rf4 {[%clk 0:00:01]}  Rf8+ {[%clk 0:00:05]} 66. Ke4 {[%clk 0:00:02]}  Rxf4+ {[%clk 0:00:06]} 67. Kxf4 {[%clk 0:00:03]} 1/2-1/2


[Site "https://www.chess.com"]

[Event "Titled Tuesday Blitz July 18 Late 2023"]
[White "Musovic, Armin"]
[Black "Lalanne, Pablo"]
[WhiteFideId "939935"]
[BlackFideId "112151"]
[WhiteElo "2550"]
[BlackElo "2398"]
[Result "0-1"]
[Round "10"]
[TimeControl "180+2"]
[Date "2023.07.18"]
[WhiteClock "0:00:09"]
[BlackClock "0:00:16"]
[Board "57"]

1. a3 {[%clk 0:02:54]}  g6 {[%clk 0:02:56]} 2. Nc3 {[%clk 0:02:55]}  Bg7 {[%clk 0:02:57]} 3. e4 {[%clk 0:02:54]}  d6 {[%clk 0:02:53]} 4. Bc4 {[%clk 0:02:54]}  Nf6 {[%clk 0:02:52]} 5. d4 {[%clk 0:02:53]}  O-O {[%clk 0:02:52]} 6. Bg5 {[%clk 0:02:54]}  h6 {[%clk 0:02:51]} 7. Bh4 {[%clk 0:02:54]}  c5 {[%clk 0:02:49]} 8. dxc5 {[%clk 0:02:54]}  dxc5 {[%clk 0:02:46]} 9. Qxd8 {[%clk 0:02:55]}  Rxd8 {[%clk 0:02:46]} 10. e5 {[%clk 0:02:56]}  Nfd7 {[%clk 0:02:40]} 11. O-O-O {[%clk 0:02:53]}  Nc6 {[%clk 0:02:28]} 12. e6 {[%clk 0:02:51]}  fxe6 {[%clk 0:02:17]} 13. Bxe6+ {[%clk 0:02:52]}  Kh7 {[%clk 0:02:12]} 14. Nf3 {[%clk 0:02:49]}  g5 {[%clk 0:01:58]} 15. Bg3 {[%clk 0:02:39]}  Nd4 {[%clk 0:01:51]} 16. Nxd4 {[%clk 0:02:37]}  cxd4 {[%clk 0:01:46]} 17. Nd5 {[%clk 0:02:20]}  Nc5 {[%clk 0:01:30]} 18. Bxc8 {[%clk 0:02:08]}  Rxd5 {[%clk 0:01:29]} 19. Bg4 {[%clk 0:02:06]}  Kg6 {[%clk 0:01:09]} 20. Rhe1 {[%clk 0:01:51]}  Bf6 {[%clk 0:01:06]} 21. Kb1 {[%clk 0:01:34]}  Rad8 {[%clk 0:01:04]} 22. Bf3 {[%clk 0:01:31]}  R5d7 {[%clk 0:01:03]} 23. Be5 {[%clk 0:01:16]}  Kg7 {[%clk 0:00:52]} 24. Bg4 {[%clk 0:01:12]}  Rd5 {[%clk 0:00:50]} 25. Bg3 {[%clk 0:01:07]}  d3 {[%clk 0:00:46]} 26. Bf3 {[%clk 0:00:56]}  R5d7 {[%clk 0:00:41]} 27. cxd3 {[%clk 0:00:49]}  Nxd3 {[%clk 0:00:39]} 28. Re2 {[%clk 0:00:50]}  Nc5 {[%clk 0:00:33]} 29. Rxd7 {[%clk 0:00:49]}  Rxd7 {[%clk 0:00:34]} 30. Rc2 {[%clk 0:00:48]}  b6 {[%clk 0:00:33]} 31. h3 {[%clk 0:00:41]}  Rd3 {[%clk 0:00:28]} 32. Bb8 {[%clk 0:00:36]}  Rd7 {[%clk 0:00:26]} 33. Bg4 {[%clk 0:00:23]}  Rb7 {[%clk 0:00:24]} 34. Bg3 {[%clk 0:00:20]}  e5 {[%clk 0:00:24]} 35. Rd2 {[%clk 0:00:19]}  Ne4 {[%clk 0:00:22]} 36. Rd5 {[%clk 0:00:17]}  Nxg3 {[%clk 0:00:22]} 37. fxg3 {[%clk 0:00:18]}  Re7 {[%clk 0:00:21]} 38. Be2 {[%clk 0:00:17]}  e4 {[%clk 0:00:22]} 39. Kc2 {[%clk 0:00:17]}  Rc7+ {[%clk 0:00:21]} 40. Kb3 {[%clk 0:00:17]}  Rc1 {[%clk 0:00:20]} 41. Rd7+ {[%clk 0:00:16]}  Kg6 {[%clk 0:00:20]} 42. Bb5 {[%clk 0:00:11]}  Kf5 {[%clk 0:00:19]} 43. Rxa7 {[%clk 0:00:11]}  Rb1 {[%clk 0:00:19]} 44. Bd7+ {[%clk 0:00:10]}  Kg6 {[%clk 0:00:18]} 45. Bg4 {[%clk 0:00:09]}  Rxb2+ {[%clk 0:00:18]} 46. Kc4 {[%clk 0:00:09]}  Rxg2 {[%clk 0:00:19]} 47. Ra6 {[%clk 0:00:08]}  h5 {[%clk 0:00:18]} 48. Bd7 {[%clk 0:00:08]}  Rxg3 {[%clk 0:00:18]} 49. Be8+ {[%clk 0:00:07]}  Kg7 {[%clk 0:00:18]} 50. Bxh5 {[%clk 0:00:06]}  e3 {[%clk 0:00:18]} 51. Rxb6 {[%clk 0:00:06]}  Rxh3 {[%clk 0:00:18]} 52. Rb7+ {[%clk 0:00:07]}  Kh6 {[%clk 0:00:18]} 53. Be8 {[%clk 0:00:07]}  Rh4+ {[%clk 0:00:18]} 54. Kd3 {[%clk 0:00:08]}  e2 {[%clk 0:00:16]} 55. Kxe2 {[%clk 0:00:08]}  Re4+ {[%clk 0:00:17]} 56. Kf3 {[%clk 0:00:08]}  Rxe8 {[%clk 0:00:17]} 57. Rb6 {[%clk 0:00:09]}  Kg7 {[%clk 0:00:18]} 58. a4 {[%clk 0:00:09]}  Ra8 {[%clk 0:00:17]} 59. Rb7+ {[%clk 0:00:10]}  Kg6 {[%clk 0:00:17]} 60. Rb4 {[%clk 0:00:10]}  Ra5 {[%clk 0:00:17]} 61. Rc4 {[%clk 0:00:11]}  Kf5 {[%clk 0:00:17]} 62. Rb4 {[%clk 0:00:10]}  Be5 {[%clk 0:00:17]} 63. Ke3 {[%clk 0:00:10]}  Rc5 {[%clk 0:00:17]} 64. Kd3 {[%clk 0:00:09]}  g4 {[%clk 0:00:17]} 65. Ke3 {[%clk 0:00:09]}  Rc3+ {[%clk 0:00:17]} 66. Kd2 {[%clk 0:00:09]}  Ra3 {[%clk 0:00:18]} 67. Rc4 {[%clk 0:00:09]}  g3 {[%clk 0:00:18]} 68. Ke2 {[%clk 0:00:10]}  g2 {[%clk 0:00:17]} 69. Kf2 {[%clk 0:00:11]}  Ra2+ {[%clk 0:00:17]} 70. Kg1 {[%clk 0:00:11]}  Ke6 {[%clk 0:00:17]} 71. Re4 {[%clk 0:00:11]}  Kd5 {[%clk 0:00:17]} 72. Re1 {[%clk 0:00:10]}  Bd4+ {[%clk 0:00:17]} 73. Kh2 {[%clk 0:00:10]}  g1=Q+ {[%clk 0:00:17]} 74. Kh3 {[%clk 0:00:09]}  Qxe1 {[%clk 0:00:16]} 0-1


[Site "https://www.chess.com"]

[Event "Titled Tuesday Blitz July 18 Late 2023"]
[White "SicilianPanzer"]
[Black "Przybylski, Wojciech"]
[BlackFideId "1117599"]
[WhiteElo "2319"]
[BlackElo "2546"]
[Result "0-1"]
[Round "10"]
[TimeControl "180+2"]
[Date "2023.07.18"]
[WhiteClock "0:00:00"]
[BlackClock "0:00:07"]
[Board "58"]

1. e4 {[%clk 0:02:58]}  e5 {[%clk 0:02:59]} 2. Nc3 {[%clk 0:02:58]}  Nf6 {[%clk 0:02:58]} 3. Bc4 {[%clk 0:02:58]}  Nc6 {[%clk 0:02:57]} 4. d3 {[%clk 0:02:57]}  Bc5 {[%clk 0:02:51]} 5. f4 {[%clk 0:02:55]}  Bxg1 {[%clk 0:02:43]} 6. Rxg1 {[%clk 0:02:54]}  d6 {[%clk 0:02:42]} 7. f5 {[%clk 0:02:48]}  h6 {[%clk 0:02:28]} 8. a3 {[%clk 0:02:37]}  Nd4 {[%clk 0:02:15]} 9. Be3 {[%clk 0:02:32]}  c6 {[%clk 0:02:02]} 10. Ba2 {[%clk 0:01:44]}  d5 {[%clk 0:01:54]} 11. Qd2 {[%clk 0:01:12]}  Nxf5 {[%clk 0:01:41]} 12. exf5 {[%clk 0:01:10]}  d4 {[%clk 0:01:42]} 13. O-O-O {[%clk 0:01:07]}  dxe3 {[%clk 0:01:42]} 14. Qxe3 {[%clk 0:01:07]}  O-O {[%clk 0:01:42]} 15. Qxe5 {[%clk 0:01:02]}  Re8 {[%clk 0:01:41]} 16. Qf4 {[%clk 0:00:58]}  h5 {[%clk 0:01:24]} 17. h3 {[%clk 0:00:42]}  Qb6 {[%clk 0:01:09]} 18. Rge1 {[%clk 0:00:35]}  Bd7 {[%clk 0:01:07]} 19. g4 {[%clk 0:00:33]}  Qc5 {[%clk 0:00:56]} 20. Ne4 {[%clk 0:00:28]}  Qd4 {[%clk 0:00:37]} 21. Nxf6+ {[%clk 0:00:09]}  Qxf6 {[%clk 0:00:36]} 22. Qc7 {[%clk 0:00:08]}  Re7 {[%clk 0:00:33]} 23. Rxe7 {[%clk 0:00:07]}  Qxe7 {[%clk 0:00:32]} 24. f6 {[%clk 0:00:06]}  gxf6 {[%clk 0:00:23]} 25. Kb1 {[%clk 0:00:06]}  h4 {[%clk 0:00:16]} 26. Qf4 {[%clk 0:00:04]}  Qe5 {[%clk 0:00:14]} 27. Qh6 {[%clk 0:00:03]}  Qg5 {[%clk 0:00:13]} 28. Qxg5+ {[%clk 0:00:02]}  fxg5 {[%clk 0:00:13]} 29. Rf1 {[%clk 0:00:03]}  Rf8 {[%clk 0:00:11]} 30. d4 {[%clk 0:00:03]}  Kg7 {[%clk 0:00:11]} 31. Bc4 {[%clk 0:00:04]}  f5 {[%clk 0:00:10]} 32. gxf5 {[%clk 0:00:02]}  Rxf5 {[%clk 0:00:09]} 33. Rxf5 {[%clk 0:00:01]}  Bxf5 {[%clk 0:00:09]} 34. Bf1 {[%clk 0:00:02]}  g4 {[%clk 0:00:08]} 35. Bg2 {[%clk 0:00:01]}  gxh3 {[%clk 0:00:07]} 36. Bh1 {[%clk 0:00:01]}  Bg4 {[%clk 0:00:07]} 37. Kc1 {[%clk 0:00:01]}  Be6 {[%clk 0:00:07]} 38. c3 {[%clk 0:00:00]}  Bd5 {[%clk 0:00:07]} 0-1


[Site "https://www.chess.com"]

[Event "Titled Tuesday Blitz July 18 Late 2023"]
[White "Papp, Levente"]
[Black "NigelDwarf"]
[WhiteFideId "751243"]
[WhiteElo "2694"]
[BlackElo "2494"]
[Result "0-1"]
[Round "10"]
[TimeControl "180+2"]
[Date "2023.07.18"]
[WhiteClock "0:00:00"]
[BlackClock "0:00:10"]
[Board "60"]

1. b3 {[%clk 0:03:00]}  e5 {[%clk 0:02:58]} 2. Bb2 {[%clk 0:03:01]}  Nc6 {[%clk 0:02:58]} 3. c4 {[%clk 0:03:02]}  Nf6 {[%clk 0:02:58]} 4. Nf3 {[%clk 0:03:02]}  e4 {[%clk 0:02:55]} 5. Nd4 {[%clk 0:03:01]}  d5 {[%clk 0:02:56]} 6. e3 {[%clk 0:03:01]}  Bd6 {[%clk 0:02:51]} 7. cxd5 {[%clk 0:02:54]}  Nxd5 {[%clk 0:02:52]} 8. Bc4 {[%clk 0:02:53]}  Nf6 {[%clk 0:02:49]} 9. Nxc6 {[%clk 0:02:51]}  bxc6 {[%clk 0:02:48]} 10. Bxf6 {[%clk 0:02:21]}  Qxf6 {[%clk 0:02:44]} 11. Nc3 {[%clk 0:02:22]}  Qg6 {[%clk 0:02:43]} 12. Qc2 {[%clk 0:02:21]}  Bf5 {[%clk 0:02:31]} 13. O-O-O {[%clk 0:02:14]}  a5 {[%clk 0:02:16]} 14. Rdg1 {[%clk 0:02:01]}  h5 {[%clk 0:02:03]} 15. h3 {[%clk 0:01:46]}  h4 {[%clk 0:01:45]} 16. g4 {[%clk 0:01:40]}  hxg3 {[%clk 0:01:44]} 17. fxg3 {[%clk 0:01:40]}  Rxh3 {[%clk 0:01:13]} 18. g4 {[%clk 0:01:17]}  Rxh1 {[%clk 0:00:58]} 19. Rxh1 {[%clk 0:01:17]}  Qxg4 {[%clk 0:00:58]} 20. Rh8+ {[%clk 0:01:04]}  Bf8 {[%clk 0:00:53]} 21. Nb5 {[%clk 0:00:45]}  Kd7 {[%clk 0:00:48]} 22. Rxf8 {[%clk 0:00:31]}  Rxf8 {[%clk 0:00:44]} 23. Nd4 {[%clk 0:00:32]}  c5 {[%clk 0:00:30]} 24. Bb5+ {[%clk 0:00:28]}  Kd6 {[%clk 0:00:30]} 25. Ne2 {[%clk 0:00:20]}  Rh8 {[%clk 0:00:24]} 26. Kb2 {[%clk 0:00:16]}  Rh2 {[%clk 0:00:23]} 27. Nf4 {[%clk 0:00:07]}  Qh4 {[%clk 0:00:18]} 28. Qc4 {[%clk 0:00:05]}  Rxd2+ {[%clk 0:00:11]} 29. Ka3 {[%clk 0:00:06]}  Qf2 {[%clk 0:00:09]} 30. b4 {[%clk 0:00:02]}  axb4+ {[%clk 0:00:09]} 31. Kb3 {[%clk 0:00:02]}  Rb2+ {[%clk 0:00:09]} 32. Ka4 {[%clk 0:00:00]}  Rxa2+ {[%clk 0:00:10]} 0-1


[Site "https://www.chess.com"]

[Event "Titled Tuesday Blitz July 18 Late 2023"]
[White "Korkmaz, Necmettin"]
[Black "Shuvalova, Polina"]
[WhiteFideId "6303285"]
[BlackFideId "24171760"]
[WhiteElo "2479"]
[BlackElo "2638"]
[Result "0-1"]
[Round "10"]
[TimeControl "180+2"]
[Date "2023.07.18"]
[WhiteClock "0:00:04"]
[BlackClock "0:00:06"]
[Board "61"]

1. e4 {[%clk 0:02:51]}  c6 {[%clk 0:02:58]} 2. d4 {[%clk 0:02:47]}  d5 {[%clk 0:02:59]} 3. Nc3 {[%clk 0:02:44]}  dxe4 {[%clk 0:02:59]} 4. Nxe4 {[%clk 0:02:43]}  Nf6 {[%clk 0:03:00]} 5. Nxf6+ {[%clk 0:02:43]}  exf6 {[%clk 0:03:01]} 6. Bc4 {[%clk 0:02:43]}  Be7 {[%clk 0:02:56]} 7. Nf3 {[%clk 0:02:39]}  O-O {[%clk 0:02:56]} 8. O-O {[%clk 0:02:37]}  Bg4 {[%clk 0:02:56]} 9. h3 {[%clk 0:02:37]}  Bh5 {[%clk 0:02:56]} 10. Re1 {[%clk 0:02:37]}  Nd7 {[%clk 0:02:55]} 11. c3 {[%clk 0:02:34]}  Bd6 {[%clk 0:02:55]} 12. g4 {[%clk 0:02:30]}  Bg6 {[%clk 0:02:55]} 13. Nh4 {[%clk 0:02:30]}  Qc7 {[%clk 0:02:50]} 14. Qf3 {[%clk 0:02:23]}  Rae8 {[%clk 0:02:47]} 15. Bd2 {[%clk 0:02:21]}  Nb6 {[%clk 0:02:42]} 16. Bb3 {[%clk 0:02:21]}  a5 {[%clk 0:02:33]} 17. Nxg6 {[%clk 0:02:20]}  hxg6 {[%clk 0:02:33]} 18. h4 {[%clk 0:02:20]}  a4 {[%clk 0:02:31]} 19. Bc2 {[%clk 0:02:20]}  Nc4 {[%clk 0:02:30]} 20. Rxe8 {[%clk 0:01:43]}  Rxe8 {[%clk 0:02:29]} 21. Bc1 {[%clk 0:01:44]}  Re1+ {[%clk 0:02:22]} 22. Kg2 {[%clk 0:01:44]}  Qe7 {[%clk 0:02:19]} 23. b3 {[%clk 0:01:43]}  Nd2 {[%clk 0:02:11]} 24. Qd3 {[%clk 0:01:37]}  Ne4 {[%clk 0:01:28]} 25. Bb2 {[%clk 0:01:33]}  Rxa1 {[%clk 0:01:28]} 26. Bxa1 {[%clk 0:01:32]}  f5 {[%clk 0:01:29]} 27. g5 {[%clk 0:01:32]}  axb3 {[%clk 0:01:27]} 28. axb3 {[%clk 0:01:28]}  Bc7 {[%clk 0:01:26]} 29. Qf3 {[%clk 0:01:23]}  Qe6 {[%clk 0:01:11]} 30. c4 {[%clk 0:01:14]}  Qd6 {[%clk 0:00:55]} 31. Bxe4 {[%clk 0:01:12]}  Qh2+ {[%clk 0:00:54]} 32. Kf1 {[%clk 0:01:12]}  fxe4 {[%clk 0:00:55]} 33. Qxe4 {[%clk 0:01:04]}  Qh3+ {[%clk 0:00:51]} 34. Ke2 {[%clk 0:01:01]}  Qxb3 {[%clk 0:00:47]} 35. Qe8+ {[%clk 0:01:00]}  Kh7 {[%clk 0:00:47]} 36. Qxf7 {[%clk 0:01:00]}  Qa2+ {[%clk 0:00:43]} 37. Kf3 {[%clk 0:01:00]}  Qxa1 {[%clk 0:00:29]} 38. Qxc7 {[%clk 0:00:57]}  Qxd4 {[%clk 0:00:29]} 39. Qf4 {[%clk 0:00:55]}  Qd3+ {[%clk 0:00:25]} 40. Kg2 {[%clk 0:00:44]}  b5 {[%clk 0:00:25]} 41. cxb5 {[%clk 0:00:43]}  cxb5 {[%clk 0:00:26]} 42. Qg4 {[%clk 0:00:37]}  Qd5+ {[%clk 0:00:24]} 43. Kf1 {[%clk 0:00:34]}  Qd3+ {[%clk 0:00:22]} 44. Ke1 {[%clk 0:00:32]}  Qc3+ {[%clk 0:00:18]} 45. Kf1 {[%clk 0:00:31]}  b4 {[%clk 0:00:17]} 46. h5 {[%clk 0:00:29]}  b3 {[%clk 0:00:13]} 47. hxg6+ {[%clk 0:00:29]}  Kxg6 {[%clk 0:00:14]} 48. Qe6+ {[%clk 0:00:27]}  Kxg5 {[%clk 0:00:13]} 49. Qe7+ {[%clk 0:00:27]}  Kg6 {[%clk 0:00:10]} 50. Qe6+ {[%clk 0:00:27]}  Kg5 {[%clk 0:00:09]} 51. Qe7+ {[%clk 0:00:27]}  Kh5 {[%clk 0:00:05]} 52. Qf7+ {[%clk 0:00:25]}  Kh6 {[%clk 0:00:06]} 53. Qf4+ {[%clk 0:00:23]}  Kg6 {[%clk 0:00:06]} 54. Qg4+ {[%clk 0:00:22]}  Kf6 {[%clk 0:00:05]} 55. Qf4+ {[%clk 0:00:21]}  Ke7 {[%clk 0:00:04]} 56. Qg5+ {[%clk 0:00:20]}  Kf7 {[%clk 0:00:04]} 57. Qf5+ {[%clk 0:00:19]}  Ke7 {[%clk 0:00:03]} 58. Qg5+ {[%clk 0:00:18]}  Kd7 {[%clk 0:00:04]} 59. Qd5+ {[%clk 0:00:17]}  Kc7 {[%clk 0:00:04]} 60. Qf7+ {[%clk 0:00:14]}  Kb6 {[%clk 0:00:04]} 61. Qe6+ {[%clk 0:00:13]}  Kb5 {[%clk 0:00:04]} 62. Qd7+ {[%clk 0:00:12]}  Kb4 {[%clk 0:00:04]} 63. Qb7+ {[%clk 0:00:11]}  Ka3 {[%clk 0:00:05]} 64. Qa6+ {[%clk 0:00:11]}  Kb2 {[%clk 0:00:05]} 65. Qe2+ {[%clk 0:00:11]}  Kb1 {[%clk 0:00:04]} 66. Qe4+ {[%clk 0:00:09]}  Qc2 {[%clk 0:00:04]} 67. Qe5 {[%clk 0:00:09]}  b2 {[%clk 0:00:02]} 68. Qxg7 {[%clk 0:00:09]}  Ka1 {[%clk 0:00:02]} 69. Qd4 {[%clk 0:00:08]}  Qc1+ {[%clk 0:00:02]} 70. Kg2 {[%clk 0:00:08]}  Qg5+ {[%clk 0:00:03]} 71. Kf3 {[%clk 0:00:08]}  Qf5+ {[%clk 0:00:03]} 72. Ke2 {[%clk 0:00:08]}  Qc2+ {[%clk 0:00:03]} 73. Ke3 {[%clk 0:00:08]}  Ka2 {[%clk 0:00:04]} 74. Qa7+ {[%clk 0:00:08]}  Kb1 {[%clk 0:00:03]} 75. f4 {[%clk 0:00:05]}  Kc1 {[%clk 0:00:03]} 76. Qd4 {[%clk 0:00:04]}  b1=Q {[%clk 0:00:02]} 77. f5 {[%clk 0:00:04]}  Qbb3+ {[%clk 0:00:01]} 78. Kf4 {[%clk 0:00:04]}  Qcc4 {[%clk 0:00:01]} 79. Qxc4+ {[%clk 0:00:04]}  Qxc4+ {[%clk 0:00:02]} 80. Kg5 {[%clk 0:00:05]}  Qf7 {[%clk 0:00:02]} 81. f6 {[%clk 0:00:05]}  Kd2 {[%clk 0:00:03]} 82. Kf5 {[%clk 0:00:05]}  Kd3 {[%clk 0:00:04]} 83. Ke5 {[%clk 0:00:06]}  Kc3 {[%clk 0:00:05]} 84. Kf5 {[%clk 0:00:07]}  Kd4 {[%clk 0:00:05]} 85. Kg5 {[%clk 0:00:04]}  Kd5 {[%clk 0:00:06]} 0-1


[Site "https://www.chess.com"]

[Event "Titled Tuesday Blitz July 18 Late 2023"]
[White "Tikhonov, Viacheslav"]
[Black "Pein, Jonathan"]
[WhiteFideId "44196407"]
[BlackFideId "417092"]
[WhiteElo "2531"]
[BlackElo "2446"]
[Result "0-1"]
[Round "10"]
[TimeControl "180+2"]
[Date "2023.07.18"]
[WhiteClock "0:00:05"]
[BlackClock "0:00:20"]
[Board "63"]

1. e4 {[%clk 0:02:54]}  e5 {[%clk 0:02:36]} 2. Nf3 {[%clk 0:02:53]}  d6 {[%clk 0:02:35]} 3. d4 {[%clk 0:02:52]}  exd4 {[%clk 0:02:36]} 4. Qxd4 {[%clk 0:02:53]}  Nf6 {[%clk 0:02:37]} 5. Nc3 {[%clk 0:02:53]}  Nc6 {[%clk 0:02:37]} 6. Bb5 {[%clk 0:02:53]}  Bd7 {[%clk 0:02:38]} 7. Bxc6 {[%clk 0:02:54]}  bxc6 {[%clk 0:02:38]} 8. Bf4 {[%clk 0:02:52]}  g6 {[%clk 0:02:38]} 9. O-O {[%clk 0:02:52]}  Bg7 {[%clk 0:02:39]} 10. Qd3 {[%clk 0:02:50]}  O-O {[%clk 0:02:38]} 11. h3 {[%clk 0:02:36]}  Rb8 {[%clk 0:02:38]} 12. Rab1 {[%clk 0:02:33]}  Re8 {[%clk 0:02:37]} 13. Bh2 {[%clk 0:02:23]}  Qc8 {[%clk 0:02:26]} 14. e5 {[%clk 0:02:10]}  Bf5 {[%clk 0:02:23]} 15. Qd2 {[%clk 0:02:03]}  Ne4 {[%clk 0:02:16]} 16. Nxe4 {[%clk 0:02:02]}  Bxe4 {[%clk 0:02:17]} 17. exd6 {[%clk 0:01:56]}  cxd6 {[%clk 0:02:14]} 18. Qxd6 {[%clk 0:01:44]}  Rxb2 {[%clk 0:02:05]} 19. Rxb2 {[%clk 0:01:41]}  Bxb2 {[%clk 0:02:06]} 20. Ne5 {[%clk 0:01:19]}  Qe6 {[%clk 0:01:35]} 21. Ng4 {[%clk 0:00:57]}  Qxd6 {[%clk 0:01:28]} 22. Bxd6 {[%clk 0:00:58]}  Bxc2 {[%clk 0:01:29]} 23. Bc5 {[%clk 0:00:29]}  a5 {[%clk 0:01:23]} 24. Ne3 {[%clk 0:00:26]}  Be4 {[%clk 0:01:23]} 25. Rd1 {[%clk 0:00:25]}  a4 {[%clk 0:01:14]} 26. a3 {[%clk 0:00:24]}  h5 {[%clk 0:01:11]} 27. Rd7 {[%clk 0:00:23]}  Rb8 {[%clk 0:00:43]} 28. Ra7 {[%clk 0:00:22]}  Be5 {[%clk 0:00:38]} 29. f3 {[%clk 0:00:20]}  Rb1+ {[%clk 0:00:34]} 30. Kf2 {[%clk 0:00:19]}  Rb2+ {[%clk 0:00:35]} 31. Kf1 {[%clk 0:00:19]}  Bd3+ {[%clk 0:00:34]} 32. Ke1 {[%clk 0:00:09]}  Bc3+ {[%clk 0:00:21]} 33. Kd1 {[%clk 0:00:05]}  Rb1# {[%clk 0:00:20]} 0-1


[Site "https://www.chess.com"]

[Event "Titled Tuesday Blitz July 18 Late 2023"]
[White "Villarreal, Agustin"]
[Black "Leenhouts, Koen"]
[WhiteFideId "125687"]
[BlackFideId "1008439"]
[WhiteElo "2413"]
[BlackElo "2522"]
[Result "0-1"]
[Round "10"]
[TimeControl "180+2"]
[Date "2023.07.18"]
[WhiteClock "0:01:15"]
[BlackClock "0:00:38"]
[Board "66"]

1. Nf3 {[%clk 0:03:00]}  d5 {[%clk 0:02:58]} 2. d4 {[%clk 0:03:00]}  Nf6 {[%clk 0:02:57]} 3. c4 {[%clk 0:03:01]}  c6 {[%clk 0:02:57]} 4. Nc3 {[%clk 0:03:01]}  e6 {[%clk 0:02:56]} 5. cxd5 {[%clk 0:03:00]}  exd5 {[%clk 0:02:54]} 6. Bg5 {[%clk 0:02:53]}  Be7 {[%clk 0:02:54]} 7. e3 {[%clk 0:02:53]}  Nbd7 {[%clk 0:02:53]} 8. Bd3 {[%clk 0:02:54]}  O-O {[%clk 0:02:52]} 9. Qc2 {[%clk 0:02:54]}  h6 {[%clk 0:02:51]} 10. Bh4 {[%clk 0:02:54]}  Re8 {[%clk 0:02:52]} 11. O-O {[%clk 0:02:53]}  Nf8 {[%clk 0:02:51]} 12. Rab1 {[%clk 0:02:53]}  a5 {[%clk 0:02:50]} 13. a3 {[%clk 0:02:52]}  Ne6 {[%clk 0:02:37]} 14. b4 {[%clk 0:02:50]}  axb4 {[%clk 0:02:38]} 15. axb4 {[%clk 0:02:51]}  Nh5 {[%clk 0:02:15]} 16. Bxe7 {[%clk 0:02:48]}  Qxe7 {[%clk 0:02:16]} 17. b5 {[%clk 0:02:49]}  Ng5 {[%clk 0:02:13]} 18. Nxg5 {[%clk 0:02:47]}  Qxg5 {[%clk 0:02:14]} 19. bxc6 {[%clk 0:02:42]}  bxc6 {[%clk 0:02:15]} 20. Rfc1 {[%clk 0:02:36]}  Bh3 {[%clk 0:02:09]} 21. Bf1 {[%clk 0:02:35]}  Bf5 {[%clk 0:02:03]} 22. Bd3 {[%clk 0:02:34]}  Bh3 {[%clk 0:02:03]} 23. g3 {[%clk 0:02:22]}  Rac8 {[%clk 0:01:47]} 24. Na4 {[%clk 0:02:19]}  Nf6 {[%clk 0:01:33]} 25. Nc5 {[%clk 0:02:15]}  h5 {[%clk 0:01:32]} 26. Bf1 {[%clk 0:02:08]}  Bf5 {[%clk 0:01:30]} 27. Bd3 {[%clk 0:02:07]}  Bh3 {[%clk 0:01:30]} 28. Nb7 {[%clk 0:02:08]}  Rxe3 {[%clk 0:01:14]} 29. fxe3 {[%clk 0:01:55]}  Qxe3+ {[%clk 0:01:15]} 30. Qf2 {[%clk 0:01:55]}  Qxd3 {[%clk 0:01:12]} 31. Nc5 {[%clk 0:01:47]}  Qg6 {[%clk 0:01:10]} 32. Rb7 {[%clk 0:01:40]}  Ng4 {[%clk 0:01:00]} 33. Qc2 {[%clk 0:01:38]}  Qf6 {[%clk 0:00:55]} 34. Qd2 {[%clk 0:01:37]}  Re8 {[%clk 0:00:54]} 35. Nd7 {[%clk 0:01:36]}  Qf3 {[%clk 0:00:49]} 36. Ne5 {[%clk 0:01:32]}  Nxe5 {[%clk 0:00:44]} 37. dxe5 {[%clk 0:01:32]}  Rxe5 {[%clk 0:00:41]} 38. Qc2 {[%clk 0:01:19]}  Qe3+ {[%clk 0:00:38]} 39. Kh1 {[%clk 0:01:17]}  Qf3+ {[%clk 0:00:38]} 40. Kg1 {[%clk 0:01:17]}  Qe3+ {[%clk 0:00:38]} 41. Kh1 {[%clk 0:01:15]}  Qe1+ {[%clk 0:00:38]} 0-1


[Site "https://www.chess.com"]